Workbook

Sheet Приџ,прим vs Расх,изд (hidden)
A1: Р.бр. | B1: ОПИС | C1: Шифра економске класификације | D1: Средства из буџета | E1: Средства из осталих извора | F1: Укупно
A2: 1 | B2: 2 | C2: 3 | D2: 4 | E2: 5 | F2: 6
A3: I | B3: УКУПНИ ПРИХОДИ И ПРИМАЊА ОД ПРОДАЈЕ НЕФИНАНСИЈСКЕ ИМОВИНЕ | C3: 7+8
A4: 1. | B4: Порески приходи | C4: 71
A5: 1.1. | B5: Порез на доходак, добит и капиталне добитке (осим самодоприноса) | C5: 711
A6: 1.2. | B6: Самодопринос | C6: 711180
A7: 1.3. | B7: Порез на имовину | C7: 713
A8: 1.6. | B8: Остали порески приходи
A9: 2. | B9: Непорески приходи | C9: 74
A10: 2.1 | B10: Накнада за коришћење природних добара | C10: 741510
A11: 2.2 | B11: Накнада за коришћење шумског и пољопривредног земљишта | C11: 741520
A12: 2.2 | B12: Накнада за коришћење грађевинског земљишта | C12: 741534
A13: 2.3 | B13: Накнада за коришћење природног лековитог фактора | C13: 741542
A14: 2.4 | B14: Приход од имовине који припада имаоцима полисе осигурања | C14: 741411
A15: 2.5 | B15: Накнада за обавезни здравствени преглед биља | C15: 742252
A16: 2.6 | B16: Накнада за уређивање грађевинског земљишта | C16: 742253
A17: 2.7 | B17: Приходи настали продајом услуга корисника средстава буџета јединице локлане самоуправе чије је пружање уговорено са физичким и правним лицима | C17: 742340
A18: 2.8 | B18: Остали непорески приходи
A19: 3. | B19: Донације | C19: 731+732
A20: 4. | B20: Трансфери | C20: 733
A21: 5. | B21: Меморандумске ставке за рефундацију расхода | C21: 771
A22: 6. | B22: Примања од продаје нефинансијске имовине | C22: 8
A23: II | B23: УКУПНИ РАСХОДИ И ИЗДАЦИ ЗА НАБАВКУ НЕФИНАНСИЈСКЕ ИМОВИНЕ | C23: 4+5
A24: 1. | B24: Текући расходи | C24: 4 - 463
A25: 1.1. | B25: Расходи за запослене | C25: 41
A26: 1.2. | B26: Коришћење роба и услуга | C26: 42
A27: 1.3. | B27: Употреба основних средстава | C27: 43
A28: 1.4. | B28: Отплата камата | C28: 44
A29: 1.5. | B29: Субвенције | C29: 45
A30: 1.6. | B30: Социјална заштита из буџета | C30: 47
A31: 1.7. | B31: Остали расходи | C31: 48+49
A32: 2. | B32: Трансфери | C32: 463
A33: 3. | B33: Издаци за набавку нефинансијске имовине | C33: 5
A34: 4. | B34: Издаци за набавку финансијске имовине (осим 6211) | C34: 62
A35: III | B35: ПРИМАЊА ОД ПРОДАЈЕ ФИНАНСИЈСКЕ ИМОВИНЕ И ЗАДУЖИВАЊА | C35: 9
A36: 1. | B36: Задуживање | C36: 91
A37: 1.1. | B37: Задуживање код домаћих кредитора | C37: 911
A38: 1.2. | B38: Задуживање код страних кредитора | C38: 912
A39: 2. | B39: Примања по основу отплате кредита и продаје финансијске имовине | C39: 92
A40: IV | B40: ОТПЛАТА ДУГА И НАБАВКА ФИНАНСИЈСКЕ ИМОВИНЕ | C40: 6
A41: 1. | B41: Отплата дуга | C41: 61
A42: 1.1. | B42: Отплата дуга домаћим кредиторима | C42: 611
A43: 1.2. | B43: Отплата дуга страним кредиторима | C43: 612
A44: 1.3. | B44: Отплата дуга по гаранцијама | C44: 613
A45: 2. | B45: Набавка финансијске имовине | C45: 6211
A47: V | B47: НЕРАСПОРЕЂЕНИ ВИШАК ПРИХОДА ИЗ РАНИЈИХ ГОДИНА | C47: 3

Sheet Оптшти део - (6)
A1: Класа/Категорија/Група | B1: Конто | C1: ВРСТЕ ПРИХОДА И ПРИМАЊА | D1: План за 2021. | G1: УКУПНА ЈАВНА СРЕДСТВА
D2: Средства из буџета | E2: Структ-ура % | F2: Средства из осталих извора финан. буџ. корисника | H2: %
B3: 321121 | C3: Вишак прихода и примања - суфицит | E3: =IFERROR(D3/$D$99,"-") -> 0 | F3: 253054000 | G3: =D3+F3 -> 253054000 | H3: =G3/G99*100 -> 10.99756628
A4: 700000 | C4: ТЕКУЋИ ПРИХОДИ | D4: =SUM(D5,D41,D52,D83,D86) -> 2035747000 | E4: 0.9997299019 | F4: =F41+F76+F83 -> 11649000 | G4: =G5+G41+G52+G83 -> 2047396000 | H4: =G4/G99*100 -> 88.97853107
A5: 710000 | C5: ПОРЕЗИ | D5: =D6+D18+D20+D26+D37+D39 -> 710290500 | E5: 0.3488147849 | F5: =SUM(F6,F20,F26,F39) -> 0 | G5: =G6+G18+G20+G26+G37+G39 -> 710290500 | H5: =G5/G99*100 -> 30.86877445
A6: 711000 | C6: ПОРЕЗ НА ДОХОДАК, ДОБИТ И КАПИТАЛНЕ ДОБИТКЕ | D6: =D7+D8+D9+D10+D11+D12+D13+D14+D15+D16+D17 -> 218190000 | E6: 0.1071503813 | F6: =SUM(F7:F16) -> 0 | G6: =G7+G8+G9+G10+G11+G12+G13+G14+G15+G16+G17 -> 218190000 | H6: =G6/G99*100 -> 9.482398957
B7: 711111 | C7: Порез на зараде | D7: 154500000 | E7: 0.07587301852 | G7: =D7+F7 -> 154500000 | H7: =G7/G99*100 -> 6.714471969
B8: 711121 | C8: Порез на приходе од самосталних делатности који се плаћа према стварно оствареном приходу, по решењу Пореске управе | D8: 300000 | E8: 0.0001473262496 | G8: =D8+F8 -> 300000 | H8: =G8/G99*100 -> 0.01303780965
B9: 711122 | C9: Порез на приходе од самосталних делатности који се плаћа према паушално утврђеном приходу, по решењу Пореске управе | D9: 10500000 | E9: 0.005156418735 | G9: =D9+F9 -> 10500000 | H9: =G9/G99*100 -> 0.4563233377
B10: 711123 | C10: Порез на приходе од самосталних делатности који се плаћа према стварно оствареном приходу самоопорезивањем | D10: 34000000 | E10: 0.01669697495 | G10: 34000000 | H10: =G10/G99*100 -> 1.477618427
B11: 711143 | C11: Порез на приходе од непокретности | D11: 1000 | E11: 4.910874985e-07 | G11: 1000 | H11: =G11/G99*100 -> 4.345936549e-05
B12: 711145 | C12: Порез на приходе од давања у закуп покретних ствари - по основу самоопорезивања и по решењу Пореске управе | D12: 250000 | E12: 0.0001227718746 | G12: 250000 | H12: =G12/G99*100 -> 0.01086484137
B13: 711147 | C13: Порез на земљиште | D13: 10000 | E13: 4.910874985e-06 | G13: 10000 | H13: =G13/G99*100 -> 0.0004345936549
B14: 711181 | C14: Самодопринос према зарадама запослених | D14: 1000 | E14: 4.910874985e-07 | G14: 1000 | H14: 0
B15: 711184 | C15: Самодопринос из прихода од самосталне делатности | D15: 10000 | E15: 4.910874985e-06 | G15: 10000 | H15: =G15/G99*100 -> 0.0004345936549
B16: 711191 | C16: Порез на друге приходе | D16: 17000000 | E16: 0.008348487475 | G16: 17000000 | H16: =G16/G99*100 -> 0.7388092134
B17: 711193 | C17: Порез на приходе спортиста и спортских стручнјака | D17: 1618000 | E17: 0.0007945795726 | G17: 1618000 | H17: =G17/G99*100 -> 0.07031725337
A18: 712000 | C18: ПОРЕЗ НА ФОНД ЗАРАДА | D18: =D19 -> 500 | E18: 2.455437493e-07 | G18: 500 | H18: 0
B19: 712112 | C19: Порез на фонд зарада | D19: 500 | E19: 2.455437493e-07 | G19: 500 | H19: 0
A20: 713000 | C20: ПОРЕЗ НА ИМОВИНУ | D20: =D21+D22+D23+D24+D25 -> 370000000 | E20: 0.1817023745 | F20: =SUM(F21:F25) -> 0 | G20: =G21+G22+G23+G24+G25 -> 370000000 | H20: =G20/G99*100 -> 16.07996523
B21: 713121 | C21: Порез на имовину (осим на земљиште, акције и уделе) од физичких лица | D21: 107000000 | E21: 0.05254636234 | G21: =D21+F21 -> 107000000 | H21: =G21/G99*100 -> 4.650152108
B22: 713122 | C22: Порез на имовину (осим на земљиште, акције и уделе) од правних лица | D22: 127000000 | E22: 0.06236811231 | G22: 127000000 | H22: =G22/G99*100 -> 5.519339418
B23: 713311 | C23: Порез на наслеђе и поклон по решењу Пореске управе | D23: 7000000 | E23: 0.00343761249 | G23: 7000000 | H23: =G23/G99*100 -> 0.3042155585
B24: 713421 | C24: Порез на пренос апсолутних права на непокретности, по решењу Пореске управе | D24: 126000000 | E24: 0.83 | G24: 126000000 | H24: =G24/G99*100 -> 5.475880052
B25: 713423 | C25: Порез на пренос апсолутних права на моторним возилима, пловилима и ваздухопловима, по решењу Пореске управе | D25: 3000000 | E25: =IFERROR(D25/$D$99,"-") -> 0.001473262496 | G25: 3000000 | H25: =G25/G99*100 -> 0.1303780965
A26: 714000 | C26: ПОРЕЗ НА ДОБРА И УСЛУГЕ | D26: =D27+D28+D29+D30+D31+D32+D33+D34+D35+D36 -> 105900000 | E26: 0.05200616609 | F26: =SUM(F27:F34) -> 0 | G26: =G27+G28+G29+G30+G31+G32+G33+G34+G35+G36 -> 105900000 | H26: =G26/G99*100 -> 4.602346806
B27: 714431 | C27: Комунална такса за коришћење рекламних паноа, укључујући и истицање и исписивање фирме ван пословног простора на објектима и просторима који припадају јединици локалне самоуправе(коловози, тротоари, зелене површине, бандере и сл.) | D27: 500000 | E27: 0.0002455437493 | G27: =D27+F27 -> 500000 | H27: =G27/G99*100 -> 0.02172968275
B28: 714513 | C28: Комунална такса за држање моторних друмских и прикључних возила, осим пољопривредних возила и машина | D28: 12000000 | E28: 0.005893049982 | G28: 12000000 | H28: =G28/G99*100 -> 0.5215123859
B29: 714543 | C29: Накнада за промену намене обрадивог пољопривредног земљишта | D29: 3500000 | E29: 0.001718806245 | G29: 3500000 | H29: =G29/G99*100 -> 0.1521077792
B30: 714548 | C30: Накнада за супстанце које оштећују озонски омотач | D30: 300000 | E30: 0.0001473262496 | G30: 300000 | H30: =G30/G99*100 -> 0.01303780965
B31: 714549 | C31: Накнада од емисије СО2, НО2, прашкастих материја | D31: 100000 | E31: 4.910874985e-05 | G31: 100000 | H31: 0
B32: 714552 | C32: Боравишна такса - правна лица | D32: 52000000 | E32: 0.02553654992 | G32: 52000000 | H32: =G32/G99*100 -> 2.259887006
B33: 714553 | C33: Боравишна такса - физичка лица у пазшалном износу по лежају | D33: 30000000 | E33: 0.01473262496 | G33: 30000000
B34: 714562 | C34: Посебна накнада за заштиту и унапређење животне средине | D34: 500000 | E34: 0.0002455437493 | G34: 500000 | H34: =G34/G99*100 -> 0.02172968275
B35: 714565 | C35: Накнада за коришћење простора на јавној површини | D35: 2000000 | E35: 0.0009821749971 | G35: 2000000
B36: 714566 | C36: Накнада за коришћење јавне површине за оглашавање | D36: 5000000 | E36: 0.002455437493 | G36: 5000000
A37: 715000 | C37: ПОРЕЗ НА МЕЂУНАРОДНУ ТРГОВИНУ И ТРАНСАКЦИЈЕ | D37: =D38 -> 1200000 | G37: 1200000 | H37: 0.03
B38: 715411 | C38: Добит по основу разлике између куповног и продајног девизног курса | D38: 1200000 | G38: 1200000 | H38: 0.03
A39: 716000 | C39: ДРУГИ ПОРЕЗИ | D39: =SUM(D40:D40) -> 15000000 | E39: =IFERROR(D39/$D$99,"-") -> 0.007366312478 | F39: =SUM(F40:F40) -> 0 | G39: =D39+F39 -> 15000000 | H39: =G39/G99*100 -> 0.6518904824
B40: 716111 | C40: Комунална такса за истицање фирме на пословном простору | D40: 15000000 | E40: =IFERROR(D40/$D$99,"-") -> 0.007366312478 | G40: 15000000 | H40: 0.64
A41: 730000 | C41: ДОНАЦИЈЕ И ТРАНСФЕРИ | D41: =SUM(D44,D47) -> 75432191 | E41: =IFERROR(D41/$D$99,"-") -> 0.03704380599 | F41: =F44+F47 -> 11218000 | G41: =G44+G47 -> 86650191 | H41: =G41/G99*100 -> 3.765762321
A42: 731000 | C42: ДОНАЦИЈЕ ОД ИНОСТРАНИХ ДРЖАВА | F42: =F43 -> 0 | G42: =D42+F42 -> 0 | H42: 0
B43: 731251 | C43: Капиталне донације од иностраних држава у корист нивоа општине | D43: 0 | F43: 0 | G43: =F43 -> 0 | H43: 0
A44: 732000 | C44: ДОНАЦИЈЕ И ПОМОЋИ ОД МЕЂ. ОРГАНИЗАЦИЈА | D44: =D45+D46 -> 0 | E44: =IFERROR(D44/$D$99,"-") -> 0 | F44: =F45+F46 -> 518000 | G44: =G45+G46 -> 518000 | H44: 0.4
B45: 732341 | C45: Текуће помоћи ЕУ у корист нивоа општине | E45: =IFERROR(D45/$D$99,"-") -> 0 | F45: 518000 | G45: =F45 -> 518000 | H45: 0
B46: 732441 | C46: Капиталне помоћи ЕУ у корист нивоа општине | D46: 0 | G46: =D46+F46 -> 0 | H46: 0
A47: 733000 | C47: ТРАНСФЕРИ ОД ДРУГИХ НИВОА ВЛАСТИ | D47: =SUM(D48:D51) -> 75432191 | E47: =IFERROR(D47/$D$99,"-") -> 0.03704380599 | F47: =F48+F49+F50+F51 -> 10700000 | G47: =G48+G49+G50+G51 -> 86132191 | H47: =G47/G99*100 -> 3.743250369
B48: 733151 | C48: Ненаменски трансфери од Републике у корист нивоа општина | D48: 75432191 | E48: 0.03704380599 | G48: =D48+F48 -> 75432191 | H48: =G48/G99*100 -> 3.278235159
B49: 733152 | C49: Други текући трансфери од Републике у корист нивоа општина | D49: 0 | E49: 0 | G49: =F49 -> 0 | H49: 0
B50: 733154 | C50: Текући наменски трансфери, у ужем смислу, од Републике у корист нивоа општина | D50: 0 | E50: 0 | F50: 10200000 | G50: 10200000 | H50: =G50/G99*100 -> 0.443285528
B51: 733251 | C51: Капитални наменски трансфери, у ужем смислу, од Републике у корист нивоа општине | D51: 0 | E51: 0 | F51: 500000 | G51: 500000 | H51: 0.67
A52: 740000 | C52: ДРУГИ ПРИХОДИ | D52: =SUM(D53,D63,D72,D76,D79) -> 1248224309 | E52: 0.6129873535 | F52: =F63+F79 -> 0 | G52: =G53+G63+G72+G76+G79 -> 1248374309 | H52: =G52/G99*100 -> 54.25355537
A53: 741000 | C53: ПРИХОДИ ОД ИМОВИНЕ | D53: =D54+D55+D56+D57+D58+D59+D60+D61+D62 -> 1160451000 | E53: 0.5698829788 | F53: =SUM(F54:F61) -> 0 | G53: =G54+G55+G56+G57+G58+G59+G60+G61+G62 -> 1160451000 | H53: =G53/G99*100 -> 50.43246415
B54: 741151 | C54: Приходи буџета општине од камата на средства консолидованог рачуна трезора укључена у депозит банака | D54: 1000 | E54: 4.910874985e-07 | G54: =D54+F54 -> 1000 | H54: 0
B55: 741511 | C55: Накнада за коришћење минералних сировина | D55: 1200000 | E55: 0.0005893049982 | G55: =D55+F55 -> 1200000 | H55: =G55/G99*100 -> 0.05215123859
B56: 741522 | C56: Средства остварена од давања у закуп пољопривредног земљишта | D56: 1500000 | E56: 0.0007366312478 | G56: 1500000 | H56: 0.04
B57: 741526 | C57: Накнада за коришћење шумског и пољопривредног земљишта | D57: 500000 | E57: 0.0002455437493 | G57: 500000 | H57: =G57/G99*100 -> 0.02172968275
B58: 741531 | C58: Комунална такса за коришћење простора на јавним површинама или испред пословног простора у пословне сврхе, осим ради продаје штампе, књига и других публикација, производа старих и уметничких заната и домаће радиности | D58: 10000000 | E58: 0.004910874985 | G58: 10000000 | H58: =G58/G99*100 -> 0.4345936549
B59: 741532 | C59: Комунална такса за коришћење простора за паркирање друмских моторних и прикључних возила на уређеним и обележеним местима | D59: 3200000 | E59: 0.001571479995 | G59: 3200000 | H59: =G59/G99*100 -> 0.1390699696
B60: 741534 | C60: Накнада за коришћење грађевинског земљишта | D60: 50000 | E60: 2.455437493e-05 | G60: 50000
B61: 741538 | C61: Допринос за уређивање грађевинског земљишта | D61: 1143000000 | E61: 0.5613130108 | G61: 1143000000
B62: 741596 | C62: Накнада за коришћење дрвета | D62: 1000000 | E62: 0.0004910874985 | G62: 1000000
A63: 742000 | C63: ПРИХОДИ ОД ПРОДАЈЕ ДОБАРА И УСЛУГА | D63: =D64+D65+D66+D67+D68+D69+D70+D71 -> 78702000 | E63: 0.03864956831 | F63: =F64+F65+F71 -> 0 | G63: =G64+G65+G66+G67+G68+G69+G70+G71 -> 78702000 | H63: =G63/G99*100 -> 3.420338983
B64: 742151 | C64: Приходи од продаје добара и услуга од стране тржишних организација у корист нивоа општине | D64: 32000000 | F64: 0 | G64: =D64+F64 -> 32000000 | H64: =G64/G99*100 -> 1.390699696
B65: 742152 | C65: Приходи од давања у закуп, односно на коришћење непокретности у државној својини које користе општине и индиректни корисници њиховог буџета | D65: 6000000 | E65: =IFERROR(D65/$D$99,"-") -> 0.002946524991 | F65: 0 | G65: =D65+F65 -> 6000000 | H65: =G65/G99*100 -> 0.260756193
B66: 742154 | C66: Накнада по основу конверзије права коришћења у право својине у корист нивоа општине | D66: 1000 | E66: 4.910874985e-07 | G66: =D66+F66 -> 1000 | H66: 0
B67: 742156 | C67: Приходи остварени по основу пружања услуга боравка деце у предшколским установама у корист нивоа општине | D67: 15000000 | E67: 0.007366312478 | G67: 15000000 | H67: =G67/G99*100 -> 0.6518904824
B68: 742251 | C68: Општинске административне таксе | D68: 20000000 | E68: 0.009821749971 | G68: 20000000 | H68: =G68/G99*100 -> 0.8691873099
B69: 742253 | C69: Накнада за уређивање грађевинског земљишта | D69: 1000 | E69: 4.910874985e-07 | G69: 1000 | H69: =G69/G99*100 -> 4.345936549e-05
B70: 742255 | C70: Такса за озакоњење објеката у корист нивоа општине | D70: 5000000 | E70: 0.002455437493 | G70: 5000000 | H70: =G70/G99*100 -> 0.2172968275
B71: 742351 | C71: Приходи које својом делатношћу остваре органи и организације општине | D71: 700000 | F71: 0 | G71: 700000 | H71: =G71/G99*100 -> 0.03042155585
A72: 743000 | C72: НОВЧАНЕ КАЗНЕ И ОДУЗЕТА ИМОВИНСКА КОРИСТ | D72: =D73+D74+D75 -> 7200000 | E72: =IFERROR(D72/$D$99,"-") -> 0.003535829989 | F72: =SUM(F73:F74) -> 0 | G72: 7200000 | H72: =G72/G99*100 -> 0.3129074316
B73: 743324 | C73: Приходи од новчаних казни за прекршаје, предвиђене прописима о безбедности саобраћаја на путевима | D73: 7000000 | E73: 0.00343761249 | G73: 7000000 | H73: =G73/G99*100 -> 0.3042155585
B74: 743351 | C74: Приходи од новчаних казни изречених у прекршајном поступку за прекршаје прописане актом скупштине општине | D74: 100000 | E74: 4.910874985e-05 | G74: 100000 | H74: 0
B75: 743353 | C75: Приходи од новчаних казни за прекршаје, предвиђене прописима о безбедности саобраћаја на путевима | D75: 100000 | E75: 4.910874985e-05 | G75: 100000 | H75: 0
A76: 744000 | C76: ДОБРОВОЉНИ ТРАНСФЕРИ ОД ФИЗИЧКИХ И ПРАВНИХ ЛИЦА | D76: =SUM(D77:D78) -> 0 | E76: 0 | F76: =SUM(F77:F78) -> 150000 | G76: 150000 | H76: 0
B77: 744151 | C77: Текући добровољни трансфери од физичких и правних лица у корист нивоа општина | D77: 0 | E77: 0 | F77: 150000 | G77: 150000 | H77: 0
B78: 744251 | C78: Капитални добровољни трансфери од физичких и правних лица у корист нивоа општина | E78: 0 | G78: 0 | H78: 0
A79: 745000 | C79: МЕШОВИТИ И НЕОДРЕЂЕНИ ПРИХОДИ | D79: =D80+D81+D82 -> 1871309 | E79: 0.0009189764558 | F79: =SUM(F80:F82) -> 0 | G79: 1871309 | H79: =G79/G99*100 -> 0.08132590178
B80: 745151 | C80: Остали приходи у корист нивоа општина | D80: 1871309 | E80: 0.0009189764558 | F80: 0 | G80: 1871309 | H80: 0.24
B81: 745152 | C81: Закупнина за стан у државној својини у корист нивоа општина | D81: 0 | E81: 0 | G81: 0 | H81: 0
B82: 745153 | C82: Део добити јавног предузећа према одлуци управног одбора јавног предузећа у корист нивоа општина | D82: 0 | E82: 0 | G82: 0 | H82: 0
A83: 772000 | C83: МЕМОРАНДУМСКЕ СТАВКЕ ЗА РЕФУНДАЦИЈУ РАСХОДА | D83: =D84+D85 -> 1800000 | E83: 0.0008839574974 | F83: =SUM(F84) -> 281000 | G83: =G84+G85 -> 2081000 | H83: =G83/G99*100 -> 0.09043893959
B84: 772111 | C84: Меморандумске ставке за рефундацију расхода буџета Републике из претходне године | D84: 300000 | E84: 0.0001473262496 | F84: 281000 | G84: 581000 | H84: 0.04
B85: 772114 | C85: Mеморандумске ставке за рефундацију расхода буџета општине из претходне године | D85: 1500000 | E85: 0.0007366312478 | G85: =D85 -> 1500000
A86: 790000 | C86: ПРИХОДИ ИЗ БУЏЕТА | D86: =SUM(D87) -> 0 | E86: 0 | F86: =SUM(F87) -> 0 | G86: 0 | H86: 0
B87: 791110 | C87: Приходи из буџета | E87: 0 | G87: 0 | H87: 0
A88: 800000 | C88: ПРИМАЊА ОД ПРОДАЈЕ НЕФИНАНСИЈСКЕ ИМОВИНЕ | D88: =D89+D93 -> 550000 | E88: 0.0002700981242 | F88: =F89+F93 -> 0 | G88: 550000 | H88: =G88/G99*100 -> 0.02390265102
A89: 810000 | C89: ПРИМАЊА ОД ПРОДАЈЕ ОСНОВНИХ СРЕДСТАВА | D89: =D90+D91+D92 -> 50000 | E89: 2.455437493e-05 | F89: =SUM(F90:F91) -> 0 | G89: 50000 | H89: 0
B90: 811000 | C90: Примања од продаје непокретности | E90: 0 | G90: 0 | H90: 0
B91: 812000 | C91: Примања од продаје покретне имовине | D91: 50000 | E91: 2.455437493e-05 | G91: 50000 | H91: 0
B92: 813000 | C92: Примања од продаје осталих основних средстава | D92: 0 | G92: 0 | H92: 0
A93: 823000 | C93: ПРИМАЊА ОД ПРОДАЈЕ РОБЕ ЗА ДАЉУ ПРОДАЈУ | D93: =SUM(D94) -> 500000 | E93: =IFERROR(D93/$D$99,"-") -> 0.0002455437493 | F93: =SUM(F94) -> 0 | G93: 500000 | H93: =G93/G99*100 -> 0.02172968275
B94: 823151 | C94: Примања од продаје робе за даљу продају у корист нивоа општине | D94: 500000 | E94: 0.0002455437493 | F94: 0 | G94: 500000 | H94: 0.05
A95: 900000 | C95: ПРИМАЊА ОД ЗАДУЖИВАЊА И ПРОДАЈЕ ФИНАНСИЈСКЕ ИМОВИНЕ | D95: 0 | E95: 0 | F95: 0 | G95: 0 | H95: 0
A96: 910000 | C96: ПРИМАЊА ОД ЗАДУЖИВАЊА | D96: =SUM(D97:D97) -> 0 | E96: 0 | F96: =SUM(F97:F97) -> 0 | G96: 0 | H96: 0
B97: 911451 | C97: Примања од задуживања од пословних банака у земљи у корист нивоа градова | D97: 0 | E97: 0 | G97: 0 | H97: 0
B98: 7+8+9 | C98: ТЕКУЋИ ПРИХОДИ И ПРИМАЊА ОД ЗАДУЖИВАЊА И ПРОДАЈЕ ФИН. ИМОВИНЕ | D98: =SUM(D4,D88,D95) -> 2036297000 | E98: 1 | F98: =F44+F47+F76+F83 -> 11649000 | G98: =G4+G88 -> 2047946000 | H98: =G98/G99*100 -> 89.00243372
B99: 3+7+8+9 | C99: УКУПНО ПРЕНЕТА СРЕДСТВА, ТЕКУЋИ ПРИХОДИ И ПРИМАЊА | D99: =SUM(D3,D4,D88,D95) -> 2036297000 | E99: 1 | F99: =F3+F98 -> 264703000 | G99: =G3+G4+G88 -> 2301000000 | H99: 100

Sheet По основ. нам.
A1: ОПШТИ ДЕО - ИЗДАЦИ ПО ОСНОВНИМ НАМЕНАМА
A3: Екон. клас. | B3: ВРСТЕ РАСХОДА И ИЗДАТАКА | C3: Средства из буџета | D3: Структура % | E3: Средства из осталих извора | F3: Укупна јавна средства | G3: %
A4: 1 | B4: 2 | C4: 3 | D4: 4 | E4: 5 | F4: 6 | G4: 7
A5: 400 | B5: ТЕКУЋИ РАСХОДИ | C5: =C6+C13+C26+C31+C37+C44+C46+C53 -> 1255908400 | D5: =IFERROR(C5/$C$84,"-") -> 0.6167609145 | E5: =SUM(E6,E13,E20,E26,E31,E37,E44,E46,E53) -> 68380600 | F5: =SUM(E5,C5) -> 1324289000 | G5: =F5/Ukupno_izdaci*100 -> 57.55275967
A6: 410 | B6: РАСХОДИ ЗА ЗАПОСЛЕНЕ | C6: =C7+C8+C9+C10+C11+C12 -> 241275000 | D6: 0.1184871362 | E6: =SUM(E7:E12) -> 1850000 | F6: =C6+E6 -> 243125000 | G6: 10.56605824
A7: 411 | B7: Плате и додаци запослених | C7: 179187000 | D7: 0.0879964956 | E7: =SUMIF('ПО КОРИСНИЦИМА'!$F$4:$F$2891,'По основ. нам.'!A7,'ПО КОРИСНИЦИМА'!$I$4:$I$2891) -> 1330000 | F7: =C7+E7 -> 180517000 | G7: =F7/Ukupno_izdaci*100 -> 7.845154281
A8: 412 | B8: Социјални доприноси на терет послодавца | C8: 29823000 | D8: 0.01464570247 | E8: =SUMIF('ПО КОРИСНИЦИМА'!$F$4:$F$2891,'По основ. нам.'!A8,'ПО КОРИСНИЦИМА'!$I$4:$I$2891) -> 239000 | F8: =C8+E8 -> 30062000 | G8: 1.306475445
A9: 413 | B9: Накнаде у натури (превоз) | C9: 1820000 | D9: 0.0008937792473 | E9: =SUMIF('ПО КОРИСНИЦИМА'!$F$4:$F$2891,'По основ. нам.'!A9,'ПО КОРИСНИЦИМА'!$I$4:$I$2891) -> 0 | F9: 1820000 | G9: 0.0790960452
A10: 414 | B10: Социјална давања запосленима | C10: 18034000 | D10: 0.008856271949 | E10: 281000 | F10: 18315000 | G10: 0.795958279
A11: 415 | B11: Накнаде за запослене | C11: 9441000 | D11: 0.004636357074 | E11: =SUMIF('ПО КОРИСНИЦИМА'!$F$4:$F$2891,'По основ. нам.'!A11,'ПО КОРИСНИЦИМА'!$I$4:$I$2891) -> 0 | F11: 9441000 | G11: 0.4102998696
A12: 416 | B12: Награде,бонуси и остали посебни расходи | C12: 2970000 | D12: 0.001458529871 | E12: =SUMIF('ПО КОРИСНИЦИМА'!$F$4:$F$2891,'По основ. нам.'!A12,'ПО КОРИСНИЦИМА'!$I$4:$I$2891) -> 0 | F12: 2970000 | G12: 0.1290743155
A13: 420 | B13: КОРИШЋЕЊЕ УСЛУГА И РОБА | C13: =C14+C15+C16+C17+C18+C19 -> 550620000 | D13: 0.2704025984 | E13: =SUM(E14:E19) -> 64030600 | F13: 614650600 | G13: 26.71232508
A14: 421 | B14: Стални трошкови | C14: 116990000 | D14: 0.05745232645 | E14: 143000 | F14: 117133000 | G14: 5.090525858
A15: 422 | B15: Трошкови путовања | C15: 2970000 | D15: 0.001458529871 | E15: 125000 | F15: 3095000 | G15: 0.1345067362
A16: 423 | B16: Услуге по уговору | C16: 271746000 | D16: 0.1334510634 | E16: 23877600 | F16: 295623600 | G16: 12.84761408
A17: 424 | B17: Специјализоване услуге | C17: 51625000 | D17: 0.02535239211 | E17: 15000000 | F17: 66625000 | G17: 2.895480226
A18: 425 | B18: Текуће поправке и одржавање (услуге и мат) | C18: 75825000 | D18: 0.03723670958 | E18: 20000000 | F18: 95825000 | G18: 4.164493698
A19: 426 | B19: Материјал | C19: 31464000 | D19: 0.01545157705 | E19: 4885000 | F19: 36349000 | G19: 1.579704476
A20: 430 | B20: УПОТРЕБА ОСНОВНИХ СРЕДСТАВА | C20: =SUM(C21:C25) -> 0 | D20: 0 | E20: =SUM(E21:E25) -> 0 | F20: 0 | G20: 0
A21: 431 | B21: Амортизација некретнина и опреме; | C21: =SUMIF('ПО КОРИСНИЦИМА'!$F$4:$F$2891,'По основ. нам.'!A21,'ПО КОРИСНИЦИМА'!$H$4:$H$2891) -> 0 | D21: 0 | E21: =SUMIF('ПО КОРИСНИЦИМА'!$F$4:$F$2891,'По основ. нам.'!A21,'ПО КОРИСНИЦИМА'!$I$4:$I$2891) -> 0 | F21: 0 | G21: 0
A22: 432 | B22: Амортизација култивисане имовине; | C22: =SUMIF('ПО КОРИСНИЦИМА'!$F$4:$F$2891,'По основ. нам.'!A22,'ПО КОРИСНИЦИМА'!$H$4:$H$2891) -> 0 | D22: 0 | E22: =SUMIF('ПО КОРИСНИЦИМА'!$F$4:$F$2891,'По основ. нам.'!A22,'ПО КОРИСНИЦИМА'!$I$4:$I$2891) -> 0 | F22: 0 | G22: 0
A23: 433 | B23: Употреба драгоцености; | C23: =SUMIF('ПО КОРИСНИЦИМА'!$F$4:$F$2891,'По основ. нам.'!A23,'ПО КОРИСНИЦИМА'!$H$4:$H$2891) -> 0 | D23: 0 | E23: =SUMIF('ПО КОРИСНИЦИМА'!$F$4:$F$2891,'По основ. нам.'!A23,'ПО КОРИСНИЦИМА'!$I$4:$I$2891) -> 0 | F23: 0 | G23: 0
A24: 434 | B24: Употреба природне имовине; | C24: =SUMIF('ПО КОРИСНИЦИМА'!$F$4:$F$2891,'По основ. нам.'!A24,'ПО КОРИСНИЦИМА'!$H$4:$H$2891) -> 0 | D24: 0 | E24: =SUMIF('ПО КОРИСНИЦИМА'!$F$4:$F$2891,'По основ. нам.'!A24,'ПО КОРИСНИЦИМА'!$I$4:$I$2891) -> 0 | F24: 0 | G24: 0
A25: 435 | B25: Амортизација нематеријалне имовине | C25: =SUMIF('ПО КОРИСНИЦИМА'!$F$4:$F$2891,'По основ. нам.'!A25,'ПО КОРИСНИЦИМА'!$H$4:$H$2891) -> 0 | D25: 0 | E25: =SUMIF('ПО КОРИСНИЦИМА'!$F$4:$F$2891,'По основ. нам.'!A25,'ПО КОРИСНИЦИМА'!$I$4:$I$2891) -> 0 | F25: 0 | G25: 0
A26: 440 | B26: ОТПЛАТА КАМАТА | C26: =SUM(C27:C30) -> 9800000 | D26: 0.004812657486 | E26: =SUM(E27:E30) -> 0 | F26: 9800000 | G26: 0.4259017818
A27: 441 | B27: Отплата домаћих камата; | C27: =SUMIF('ПО КОРИСНИЦИМА'!$F$4:$F$2891,'По основ. нам.'!A27,'ПО КОРИСНИЦИМА'!$H$4:$H$2891) -> 9700000 | D27: 0.004763548736 | E27: =SUMIF('ПО КОРИСНИЦИМА'!$F$4:$F$2891,'По основ. нам.'!A27,'ПО КОРИСНИЦИМА'!$I$4:$I$2891) -> 0 | F27: 9700000 | G27: 0.4215558453
A28: 442 | B28: Отплата страних камата; | C28: =SUMIF('ПО КОРИСНИЦИМА'!$F$4:$F$2891,'По основ. нам.'!A28,'ПО КОРИСНИЦИМА'!$H$4:$H$2891) -> 0 | D28: 0 | E28: =SUMIF('ПО КОРИСНИЦИМА'!$F$4:$F$2891,'По основ. нам.'!A28,'ПО КОРИСНИЦИМА'!$I$4:$I$2891) -> 0 | F28: 0 | G28: 0
A29: 443 | B29: Отплата камата по гаранцијама | C29: =SUMIF('ПО КОРИСНИЦИМА'!$F$4:$F$2891,'По основ. нам.'!A29,'ПО КОРИСНИЦИМА'!$H$4:$H$2891) -> 0 | D29: 0 | E29: =SUMIF('ПО КОРИСНИЦИМА'!$F$4:$F$2891,'По основ. нам.'!A29,'ПО КОРИСНИЦИМА'!$I$4:$I$2891) -> 0 | F29: 0 | G29: 0
A30: 444 | B30: Пратећи трошкови задуживања | C30: 100000 | D30: 4.910874985e-05 | E30: =SUMIF('ПО КОРИСНИЦИМА'!$F$4:$F$2891,'По основ. нам.'!A30,'ПО КОРИСНИЦИМА'!$I$4:$I$2891) -> 0 | F30: 100000 | G30: 0.004345936549
A31: 450 | B31: СУБВЕНЦИЈЕ | C31: =SUM(C32:C36) -> 119000000 | D31: 0.05843941233 | E31: =SUM(E32:E36) -> 0 | F31: 119000000 | G31: 5.171664494
A32: 4511 | B32: Текуће субвенције јавним нефинансијским предузећима и организацијама | C32: 103000000 | D32: 0.05058201235 | E32: =SUMIF('ПО КОРИСНИЦИМА'!$F$4:$F$2891,'По основ. нам.'!A32,'ПО КОРИСНИЦИМА'!$I$4:$I$2891) -> 0 | F32: 103000000 | G32: 4.476314646
A33: 4512 | B33: Капиталне субвенције јавним нефинансијским предузећима и организацијама | D33: 0 | E33: =SUMIF('ПО КОРИСНИЦИМА'!$F$4:$F$2891,'По основ. нам.'!A33,'ПО КОРИСНИЦИМА'!$I$4:$I$2891) -> 0 | F33: 0 | G33: 0
A34: 452 | B34: Субвенције приватним финансијским институцијама; | C34: =SUMIF('ПО КОРИСНИЦИМА'!$F$4:$F$2891,'По основ. нам.'!A34,'ПО КОРИСНИЦИМА'!$H$4:$H$2891) -> 0 | D34: 0 | E34: =SUMIF('ПО КОРИСНИЦИМА'!$F$4:$F$2891,'По основ. нам.'!A34,'ПО КОРИСНИЦИМА'!$I$4:$I$2891) -> 0 | G34: 0
A35: 453 | B35: Субвенције јавним финансијским институцијама; | C35: =SUMIF('ПО КОРИСНИЦИМА'!$F$4:$F$2891,'По основ. нам.'!A35,'ПО КОРИСНИЦИМА'!$H$4:$H$2891) -> 0 | D35: 0 | E35: =SUMIF('ПО КОРИСНИЦИМА'!$F$4:$F$2891,'По основ. нам.'!A35,'ПО КОРИСНИЦИМА'!$I$4:$I$2891) -> 0 | F35: 0 | G35: =F35/Ukupno_izdaci*100 -> 0
A36: 454 | B36: Субвенције приватним предузећима | C36: 16000000 | D36: 0.007857399977 | E36: =SUMIF('ПО КОРИСНИЦИМА'!$F$4:$F$2891,'По основ. нам.'!A36,'ПО КОРИСНИЦИМА'!$I$4:$I$2891) -> 0 | F36: 16000000 | G36: 0.6953498479
A37: 460 | B37: ДОНАЦИЈЕ И ТРАНСФЕРИ | C37: =C40+C41+C42+C43 -> 88315000 | D37: =IFERROR(C37/$C$84,"-") -> 0.04337039243 | E37: =SUM(E38:E43) -> 0 | F37: 88315000 | G37: 3.838113864
A38: 461 | B38: Донације страним владама | C38: =SUMIF('ПО КОРИСНИЦИМА'!$F$4:$F$2891,'По основ. нам.'!A38,'ПО КОРИСНИЦИМА'!$H$4:$H$2891) -> 0 | D38: 0 | E38: =SUMIF('ПО КОРИСНИЦИМА'!$F$4:$F$2891,'По основ. нам.'!A38,'ПО КОРИСНИЦИМА'!$I$4:$I$2891) -> 0 | F38: 0 | G38: 0
A39: 462 | B39: Донације и дотације међународним организацијама | C39: =SUMIF('ПО КОРИСНИЦИМА'!$F$4:$F$2891,'По основ. нам.'!A39,'ПО КОРИСНИЦИМА'!$H$4:$H$2891) -> 0 | D39: 0 | E39: =SUMIF('ПО КОРИСНИЦИМА'!$F$4:$F$2891,'По основ. нам.'!A39,'ПО КОРИСНИЦИМА'!$I$4:$I$2891) -> 0 | F39: 0 | G39: 0
A40: 4631 | B40: Текући трансфери осталим нивоима власти | C40: 67755000 | D40: 0.03327363346 | E40: =SUMIF('ПО КОРИСНИЦИМА'!$F$4:$F$2891,'По основ. нам.'!A40,'ПО КОРИСНИЦИМА'!$I$4:$I$2891) -> 0 | F40: 67755000 | G40: 2.944589309
A41: 4632 | B41: Капитални трансфери осталим нивоима власти | C41: 6160000 | D41: 0.003025098991 | E41: =SUMIF('ПО КОРИСНИЦИМА'!$F$4:$F$2891,'По основ. нам.'!A41,'ПО КОРИСНИЦИМА'!$I$4:$I$2891) -> 0 | F41: 6160000 | G41: 0.2677096914
A42: 464 | B42: Дотације организацијама обавезног социјалног осигурања | C42: 14400000 | D42: 0.007071659979 | E42: =SUMIF('ПО КОРИСНИЦИМА'!$F$4:$F$2891,'По основ. нам.'!A42,'ПО КОРИСНИЦИМА'!$I$4:$I$2891) -> 0 | F42: 14400000 | G42: 0.6258148631
A43: 465 | B43: Остале донације, дотације и трансфери | D43: 0 | E43: 0 | F43: 0 | G43: 0
A44: 470 | B44: СОЦИЈАЛНА ПОМОЋ | C44: =SUM(C45) -> 87750000 | D44: 0.043092928 | E44: =SUM(E45) -> 2500000 | F44: 90250000 | G44: 3.922207736
A45: 472 | B45: Накнаде за социјалну заштиту из буџета | C45: 87750000 | D45: 0.043092928 | E45: 2500000 | F45: 90250000 | G45: 3.922207736
A46: 480 | B46: ОСТАЛИ РАСХОДИ | C46: =SUM(C47:C52) -> 129148400 | D46: 0.0634231647 | E46: =SUM(E47:E52) -> 0 | F46: =C46+E46 -> 129148400 | G46: 5.612707518
A47: 481 | B47: Дотације невладиним организацијама; | C47: 101350000 | D47: 0.04977171798 | E47: =SUMIF('ПО КОРИСНИЦИМА'!$F$4:$F$2891,'По основ. нам.'!A47,'ПО КОРИСНИЦИМА'!$I$4:$I$2891) -> 0 | F47: =C47+E47 -> 101350000 | G47: 4.404606693
A48: 482 | B48: Порези, обавезне таксе, казне и пенали; | C48: 8243400 | D48: 0.004048230685 | E48: =SUMIF('ПО КОРИСНИЦИМА'!$F$4:$F$2891,'По основ. нам.'!A48,'ПО КОРИСНИЦИМА'!$I$4:$I$2891) -> 0 | F48: =C48+E48 -> 8243400 | G48: 0.3582529335
A49: 483 | B49: Новчане казне и пенали по решењу судова; | C49: 4880000 | D49: 0.002396506993 | E49: =SUMIF('ПО КОРИСНИЦИМА'!$F$4:$F$2891,'По основ. нам.'!A49,'ПО КОРИСНИЦИМА'!$I$4:$I$2891) -> 0 | F49: 4880000 | G49: 0.2120817036
A50: 484 | B50: Накнада штете за повреде или штету насталу услед елементарних непогода или других природних узрока; | C50: 2050000 | D50: 0.001006729372 | E50: =SUMIF('ПО КОРИСНИЦИМА'!$F$4:$F$2891,'По основ. нам.'!A50,'ПО КОРИСНИЦИМА'!$I$4:$I$2891) -> 0 | F50: 2050000 | G50: 0.08909169926
A51: 485 | B51: Накнада штете за повреде или штету нанету од стране државних органа; | C51: 12625000 | D51: 0.006199979669 | E51: =SUMIF('ПО КОРИСНИЦИМА'!$F$4:$F$2891,'По основ. нам.'!A51,'ПО КОРИСНИЦИМА'!$I$4:$I$2891) -> 0 | F51: 12625000 | G51: 0.5486744894
A52: 489 | B52: Расходи који се финансирају из средстава за реализацију националног инвестиционог плана | C52: =SUMIF('ПО КОРИСНИЦИМА'!$F$4:$F$2891,'По основ. нам.'!A52,'ПО КОРИСНИЦИМА'!$H$4:$H$2891) -> 0 | D52: 0 | E52: =SUMIF('ПО КОРИСНИЦИМА'!$F$4:$F$2891,'По основ. нам.'!A52,'ПО КОРИСНИЦИМА'!$I$4:$I$2891) -> 0 | F52: 0 | G52: 0
A53: 490 | B53: АДМИНИСТРАТИВНИ ТРАНСФЕРИ БУЏЕТА | C53: =SUM(C54:C59) -> 30000000 | D53: 0.01473262496 | E53: =SUM(E58:E59) -> 0 | F53: 30000000 | G53: 1.303780965
A54: 494 | B54: Административни трансфери из буџета - Текући расходи | C54: =SUMIF('ПО КОРИСНИЦИМА'!$F$4:$F$2891,'По основ. нам.'!A54,'ПО КОРИСНИЦИМА'!$H$4:$H$2891) -> 0 | D54: 0 | E54: =SUMIF('ПО КОРИСНИЦИМА'!$F$4:$F$2891,'По основ. нам.'!A54,'ПО КОРИСНИЦИМА'!$I$4:$I$2891) -> 0 | F54: 0 | G54: 0
A55: 495 | B55: Административни трансфери из буџета - Издаци за нефинансијску имовину | C55: =SUMIF('ПО КОРИСНИЦИМА'!$F$4:$F$2891,'По основ. нам.'!A55,'ПО КОРИСНИЦИМА'!$H$4:$H$2891) -> 0 | D55: 0 | E55: =SUMIF('ПО КОРИСНИЦИМА'!$F$4:$F$2891,'По основ. нам.'!A55,'ПО КОРИСНИЦИМА'!$I$4:$I$2891) -> 0 | F55: 0 | G55: 0
A56: 496 | B56: Административни трансфери из буџета - Издаци за отплату главнице и набавку финансијске имовине | C56: =SUMIF('ПО КОРИСНИЦИМА'!$F$4:$F$2891,'По основ. нам.'!A56,'ПО КОРИСНИЦИМА'!$H$4:$H$2891) -> 0 | D56: 0 | E56: =SUMIF('ПО КОРИСНИЦИМА'!$F$4:$F$2891,'По основ. нам.'!A56,'ПО КОРИСНИЦИМА'!$I$4:$I$2891) -> 0 | F56: 0 | G56: 0
A57: 499 | B57: Административни трансфери из буџета - Средства резерве | D57: 0 | E57: =SUMIF('ПО КОРИСНИЦИМА'!$F$4:$F$2891,'По основ. нам.'!A57,'ПО КОРИСНИЦИМА'!$I$4:$I$2891) -> 0 | F57: 0 | G57: 0
A58: 49911 | B58: Стална резерва | C58: 5000000 | D58: 0.002455437493 | E58: =SUMIF('ПО КОРИСНИЦИМА'!$F$4:$F$2891,'По основ. нам.'!A58,'ПО КОРИСНИЦИМА'!$I$4:$I$2891) -> 0 | F58: 5000000 | G58: 0.2172968275
A59: 49912 | B59: Текућа резерва | C59: 25000000 | D59: 0.01227718746 | E59: =SUMIF('ПО КОРИСНИЦИМА'!$F$4:$F$2891,'По основ. нам.'!A59,'ПО КОРИСНИЦИМА'!$I$4:$I$2891) -> 0 | F59: 25000000 | G59: 1.086484137
A60: 500 | B60: КАПИТАЛНИ ИЗДАЦИ | C60: =C61+C67+C72+C76 -> 767388600 | D60: 0.376854948 | E60: =SUM(E61,E67,E72,E76) -> 126322400 | F60: =SUM(C60,E60) -> 893711000 | G60: 38.84011299
A61: 510 | B61: ОСНОВНА СРЕДСТВА | C61: =C62+C63+C64+C65+C66 -> 738028600 | D61: 0.362436619 | E61: =SUM(E62:E66) -> 126322400 | F61: 864351000 | G61: 37.56414602
A62: 511 | B62: Зграде и грађевински објекти; | C62: 707178600 | D62: 0.3472865697 | E62: 124622400 | F62: 831801000 | G62: 36.14954368
A63: 512 | B63: Машине и опрема; | C63: 28550000 | D63: 0.01402054808 | E63: 500000 | F63: 29050000 | G63: 1.262494568
A64: 513 | B64: Остале некретнине и опрема; | C64: =SUMIF('ПО КОРИСНИЦИМА'!$F$4:$F$2891,'По основ. нам.'!A64,'ПО КОРИСНИЦИМА'!$H$4:$H$2891) -> 0 | D64: 0 | E64: =SUMIF('ПО КОРИСНИЦИМА'!$F$4:$F$2891,'По основ. нам.'!A64,'ПО КОРИСНИЦИМА'!$I$4:$I$2891) -> 0 | F64: 0 | G64: 0
A65: 514 | B65: Култивисана имовина; | C65: =SUMIF('ПО КОРИСНИЦИМА'!$F$4:$F$2891,'По основ. нам.'!A65,'ПО КОРИСНИЦИМА'!$H$4:$H$2891) -> 0 | D65: 0 | E65: =SUMIF('ПО КОРИСНИЦИМА'!$F$4:$F$2891,'По основ. нам.'!A65,'ПО КОРИСНИЦИМА'!$I$4:$I$2891) -> 0 | F65: 0 | G65: 0
A66: 515 | B66: Нематеријална имовина | C66: 2300000 | D66: 0.001129501247 | E66: 1200000 | F66: 3500000 | G66: 0.1521077792
A67: 520 | B67: ЗАЛИХЕ | C67: =SUM(C68:C71) -> 1000000 | D67: 0.0004910874985 | E67: =SUM(E68:E70) -> 0 | F67: 1000000 | G67: =F67/Ukupno_izdaci*100 -> 0.04345936549
A68: 521 | B68: Робне резерве; | C68: =SUMIF('ПО КОРИСНИЦИМА'!$F$4:$F$2891,'По основ. нам.'!A68,'ПО КОРИСНИЦИМА'!$H$4:$H$2891) -> 0 | D68: 0 | E68: =SUMIF('ПО КОРИСНИЦИМА'!$F$4:$F$2891,'По основ. нам.'!A68,'ПО КОРИСНИЦИМА'!$I$4:$I$2891) -> 0 | F68: 0 | G68: 0
A69: 522 | B69: Залихе производње; | C69: =SUMIF('ПО КОРИСНИЦИМА'!$F$4:$F$2891,'По основ. нам.'!A69,'ПО КОРИСНИЦИМА'!$H$4:$H$2891) -> 0 | D69: =IFERROR(C69/$C$84,"-") -> 0 | E69: =SUMIF('ПО КОРИСНИЦИМА'!$F$4:$F$2891,'По основ. нам.'!A69,'ПО КОРИСНИЦИМА'!$I$4:$I$2891) -> 0 | F69: 0 | G69: 0
A70: 523 | B70: Залихе робе за даљу продају | C70: 1000000 | D70: 0.0004910874985 | E70: =SUMIF('ПО КОРИСНИЦИМА'!$F$4:$F$2891,'По основ. нам.'!A70,'ПО КОРИСНИЦИМА'!$I$4:$I$2891) -> 0 | F70: 1000000 | G70: 0.04345936549
A71: 531 | B71: Драгоцености | C71: =SUMIF('ПО КОРИСНИЦИМА'!$F$4:$F$2891,'По основ. нам.'!A71,'ПО КОРИСНИЦИМА'!$H$4:$H$2891) -> 0 | D71: 0 | G71: 0
A72: 540 | B72: ПРИРОДНА ИМОВИНА | C72: =SUM(C73:C75) -> 28360000 | D72: 0.01392724146 | E72: =SUM(E73:E75) -> 0 | F72: 28360000 | G72: 1.232507605
A73: 541 | B73: Земљиште; | C73: =SUMIF('ПО КОРИСНИЦИМА'!$F$4:$F$2891,'По основ. нам.'!A73,'ПО КОРИСНИЦИМА'!$H$4:$H$2891) -> 28360000 | D73: 0.01392724146 | E73: =SUMIF('ПО КОРИСНИЦИМА'!$F$4:$F$2891,'По основ. нам.'!A73,'ПО КОРИСНИЦИМА'!$I$4:$I$2891) -> 0 | F73: 28360000 | G73: 1.232507605
A74: 542 | B74: Рудна богатства; | C74: =SUMIF('ПО КОРИСНИЦИМА'!$F$4:$F$2891,'По основ. нам.'!A74,'ПО КОРИСНИЦИМА'!$H$4:$H$2891) -> 0 | D74: 0 | E74: =SUMIF('ПО КОРИСНИЦИМА'!$F$4:$F$2891,'По основ. нам.'!A74,'ПО КОРИСНИЦИМА'!$I$4:$I$2891) -> 0 | F74: 0 | G74: 0
A75: 543 | B75: Шуме и воде | C75: =SUMIF('ПО КОРИСНИЦИМА'!$F$4:$F$2891,'По основ. нам.'!A75,'ПО КОРИСНИЦИМА'!$H$4:$H$2891) -> 0 | D75: =IFERROR(C75/$C$84,"-") -> 0 | E75: =SUMIF('ПО КОРИСНИЦИМА'!$F$4:$F$2891,'По основ. нам.'!A75,'ПО КОРИСНИЦИМА'!$I$4:$I$2891) -> 0 | F75: 0 | G75: 0
A76: 550 | B76: Неф. Имов. која се фин. из сред. за реализ. нип-а | C76: =SUM(C77) -> 0 | D76: 0 | E76: =SUM(E77) -> 0 | F76: =C76+E76 -> 0 | G76: 0
A77: 551 | B77: Неф. имовина која се фин. из сред. за реализ. нип-а | C77: =SUMIF('ПО КОРИСНИЦИМА'!$F$4:$F$2891,'По основ. нам.'!A77,'ПО КОРИСНИЦИМА'!$H$4:$H$2891) -> 0 | D77: 0 | E77: =SUMIF('ПО КОРИСНИЦИМА'!$F$4:$F$2891,'По основ. нам.'!A77,'ПО КОРИСНИЦИМА'!$I$4:$I$2891) -> 0 | F77: =C77+E77 -> 0 | G77: 0
A78: 610 | B78: ОТПЛАТА ГЛАВНИЦЕ | C78: =SUM(C79:C81) -> 13000000 | D78: 0.006384137481 | E78: =SUM(E79:E81) -> 70000000 | F78: 83000000 | G78: 3.607127336
A79: 611 | B79: Отплата главнице домаћим кредиторима | C79: 13000000 | D79: 0.006384137481 | E79: 70000000 | F79: 83000000 | G79: 3.607127336
A80: 612 | B80: Отплата главнице страним банкама | C80: =SUMIF('ПО КОРИСНИЦИМА'!$F$4:$F$2891,'По основ. нам.'!A80,'ПО КОРИСНИЦИМА'!$H$4:$H$2891) -> 0 | D80: 0 | E80: =SUMIF('ПО КОРИСНИЦИМА'!$F$4:$F$2891,'По основ. нам.'!A80,'ПО КОРИСНИЦИМА'!$I$4:$I$2891) -> 0 | G80: 0
A81: 613 | B81: Отплата дуга по гаранцијама | C81: =SUMIF('ПО КОРИСНИЦИМА'!$F$4:$F$2891,'По основ. нам.'!A81,'ПО КОРИСНИЦИМА'!$H$4:$H$2891) -> 0 | D81: 0 | E81: =SUMIF('ПО КОРИСНИЦИМА'!$F$4:$F$2891,'По основ. нам.'!A81,'ПО КОРИСНИЦИМА'!$I$4:$I$2891) -> 0 | G81: 0
A82: 620 | B82: Набавка финансијске имовине | C82: =SUMIF('ПО КОРИСНИЦИМА'!$F$4:$F$2891,'По основ. нам.'!A82,'ПО КОРИСНИЦИМА'!$H$4:$H$2891) -> 0 | D82: 0 | E82: =SUM(E83) -> 0 | F82: 0 | G82: 0
A83: 621 | B83: Набавка домаће фин. Имовине | C83: =SUMIF('ПО КОРИСНИЦИМА'!$F$4:$F$2891,'По основ. нам.'!A83,'ПО КОРИСНИЦИМА'!$H$4:$H$2891) -> 0 | D83: 0 | E83: =SUMIF('ПО КОРИСНИЦИМА'!$F$4:$F$2891,'По основ. нам.'!A83,'ПО КОРИСНИЦИМА'!$I$4:$I$2891) -> 0 | F83: 0 | G83: 0
B84: УКУПНИ ЈАВНИ РАСХОДИ | C84: =C6+C13+C26+C31+C37+C44+C46+C53+C61+C67+C72+C78 -> 2036297000 | D84: 1 | E84: =SUM(E6,E13,E20,E26,E31,E37,E46,E44,E53,E61,E67,E72,E76,E78,E82) -> 264703000 | F84: =C84+E84 -> 2301000000 | G84: 100

Sheet ПО КОРИСНИЦИМА
A1: Раздео | B1: Глава | C1: Програм-ска Класиф. | D1: Функција | E1: Позиција | F1: Економ. Класиф. | G1: Организациона класификација | H1: Средства из буџета-извор 01 | I1: Средства из осталих извора | J1: Укупна јавна средства | M1: Напомена: Укључивање опције за аутоматско обавештавање о грешкама у преузимању износа између буџетских класификација се врши тако што се за верзије од 2007 до најновијих , у оквиру Еxcel Options опције Trust center -Trust center settings- Мacro settings , укључите последњу опцију која вам је понуђема Enable all macros
A2: 1 | B2: 2 | C2: 3 | D2: 4 | E2: 5 | F2: 6 | G2: 7 | H2: 8 | I2: 9 | J2: 10
A3: 1 | G3: СКУПШТИНА ОПШТИНЕ | M3: Напомена 2: Опцијом "Unhide" и опцијом "Hide" бирате потребна конта и изворе финансирања, морају се поштовати правила назива тј униформност уноса за сумарне износе код свих буџетских класификација . Уколико је нпр уместо "Функција 110:" написано "Функција 110 :" или "Свега за функцију 110:" програм неће преузети износ у табели функционалне класификације.
C4: 2101 | G4: ПРОГРАМ 16: ПОЛИТИЧКИ СИСТЕМ ЛОКАЛНЕ САМОУПРАВЕ
C5: 2101-0001 | G5: ПА: Функционисање скупштине
D6: 110 | G6: Извршни и законодавни органи, финансијски и фискални послови
E7: 1 | F7: 411 | G7: Плате, додаци и накнаде запослених (зараде) | H7: 3967000 | J7: =H7 -> 3967000 | M7: Напомена 3: За расходе који се финансирају из осталих извора и који се приказују у тој колони, нису унете аутоматске суме те је потребно да корисник сам изврши сумирања у тој колони.
E8: 2 | F8: 412 | G8: Социјални доприноси на терет послодавца | H8: 661000 | J8: =H8 -> 661000
E9: 3 | F9: 413 | G9: Накнаде у натури | H9: 50000 | J9: 50000
E10: 4 | F10: 414 | G10: Социјална давања запосленима | H10: 350000 | J10: 350000
E11: 5 | F11: 415 | G11: Накнаде трошкова за запослене | H11: 80000 | J11: 80000
E12: 6 | F12: 421 | G12: Стални трошкови | H12: 12000 | J12: 12000
E13: 7 | F13: 422 | G13: Трошкови путовања | H13: 50000 | J13: 50000
E14: 8 | F14: 423 | G14: Услуге по уговору - накнаде за одборнике, репрезентација, дан општине, угоститељске услуге | H14: 12000000 | J14: 12000000
E15: 9 | F15: 425 | G15: Текуће поправке и одржавање | H15: 100000 | J15: 100000
E16: 10 | F16: 426 | G16: Материјал | H16: 700000 | J16: 700000
F17: 431 | G17: Амортизација некретнина и опреме | J17: 0
F18: 432 | G18: Амортизација култивисане имовине | J18: 0
F19: 433 | G19: Употреба драгоцености | J19: 0
F20: 434 | G20: Употреба природне имовине | J20: 0
F21: 435 | G21: Амортизација нематеријалне имовине | J21: 0
F22: 441 | G22: Отплата домаћих камата | J22: 0
F23: 442 | G23: Отплата страних камата | J23: 0
F24: 443 | G24: Отплата камата по гаранцијама | J24: 0
F25: 444 | G25: Пратећи трошкови задуживања | J25: 0
F26: 4511 | G26: Текуће субвенције јавним нефинансијским предузећима и организацијама | J26: 0
F27: 4512 | G27: Капиталне субвенције јавним нефинансијским предузећима и организацијама | J27: 0
F28: 452 | G28: Субвенције приватним финансијским институцијама | J28: 0
F29: 453 | G29: Субвенције јавним финансијским институцијама | J29: 0
F30: 454 | G30: Субвенције приватним предузећима | J30: 0
F31: 461 | G31: Донације страним владама | J31: 0
F32: 462 | G32: Донације и дотације међународним организацијама | J32: 0
F33: 4631 | G33: Текући трансфери осталим нивоима власти | J33: 0
F34: 4632 | G34: Капитални трансфери осталим нивоима власти | J34: 0
F35: 464 | G35: Дотације организацијама обавезног социјалног осигурања | J35: 0
F36: 465 | G36: Остале донације, дотације и трансфери | J36: 0
E37: 11 | F37: 481 | G37: Дотације невладиним организацијама-средства за финансирање редовног рада политичких странки | H37: 750000 | J37: 750000
E38: 12 | F38: 482 | G38: Порези, обавезне таксе, казне и пенали | H38: 10000 | J38: 10000
F39: 482 | G39: Порези, обавезне таксе, казне и пенали | J39: =SUM(H39:I39) -> 0
F40: 483 | G40: Новчане казне и пенали по решењу судова | J40: 0
F41: 484 | G41: Накнада штете за повреде или штету насталу услед елементарних непогода или других природних узрока | J41: 0
F42: 485 | G42: Накнада штете за повреде или штету нанету од стране државних органа | J42: 0
F43: 489 | G43: Расходи који се финансирају из средстава за реализацију националног инвестиционог плана | J43: 0
F44: 494 | G44: Административни трансфери из буџета - Текући расходи | J44: 0
F45: 495 | G45: Административни трансфери из буџета - Издаци за нефинансијску имовину | J45: 0
F46: 496 | G46: Административни трансфери из буџета - Издаци за отплату главнице и набавку финансијске имовине | J46: 0
F47: 499 | G47: Административни трансфери из буџета - Средства резерве | J47: 0
F48: 511 | G48: Зграде и грађевински објекти | J48: 0
F49: 512 | G49: Машине и опрема | J49: 0
F50: 513 | G50: Остале некретнине и опрема | J50: 0
F51: 514 | G51: Култивисана имовина | J51: 0
F52: 515 | G52: Нематеријална имовина | J52: 0
F53: 521 | G53: Робне резерве | J53: 0
F54: 522 | G54: Залихе производње | J54: 0
F55: 523 | G55: Залихе робе за даљу продају | J55: 0
F56: 531 | G56: Драгоцености | J56: 0
F57: 541 | G57: Земљиште | J57: 0
F58: 542 | G58: Рудна богатства | J58: 0
F59: 543 | G59: Шуме и воде | J59: 0
F60: 551 | G60: Нефинансијска имовина која се финансира из средстава за реализацију националног инвестиционог плана | J60: 0
F61: 611 | G61: Отплата главнице домаћим кредиторима | J61: 0
F62: 620 | G62: Набавка финансијске имовине | J62: 0
G63: Извори финансирања за ПА: 2101-0001
G64: 01 - Приходи буџета | H64: =H7+H8+H9+H10+H11+H12+H13+H14+H15+H16+H37+H38 -> 18730000 | J64: =J7+J8+J9+J10+J11+J12+J13+J14+J15+J16+J37+J38 -> 18730000
G65: Укупно за ПА: 2101-0001 | H65: =H64 -> 18730000 | J65: =J64 -> 18730000
G66: Извор финансирања за функцију: 110
G67: 01 - Приходи буџета | H67: =H65 -> 18730000 | J67: =H67 -> 18730000
G68: Укупно за функцију: 110 | H68: =H65 -> 18730000 | J68: =J65 -> 18730000
G69: Извори финансирања за раздео 1. - СКУПШТИНА ОПШТИНЕ:
G70: 01 - Приходи из буџета | H70: =H64 -> 18730000 | J70: =SUM(H70:I70) -> 18730000
F71: 02 | G71: Трансфери између корисника на истом нивоу | J71: =SUM(H71:I71) -> 0
F72: 03 | G72: Социјални доприноси | J72: 0
F73: 04 | G73: Сопствени приходи буџетских корисника | J73: 0
F74: 05 | G74: Донације од иностраних земаља | J74: 0
F75: 06 | G75: Донације од међународних организација | J75: 0
F76: 07 | G76: Трансфери од других нивоа власти | J76: 0
F77: 08 | G77: Добровољни трансфери од физичких и правних лица | J77: 0
F78: 09 | G78: Примања од продаје нефинансијске имовине | J78: 0
F79: 10 | G79: Примања од домаћих задуживања | J79: 0
F80: 11 | G80: Примања од иностраних задуживања | J80: 0
F81: 12 | G81: Примања од отплате датих кредита и продаје финансијске имовине | J81: 0
F82: 13 | G82: Нераспоређени вишак прихода из ранијих година | J82: 0
F83: 14 | G83: Неутрошена средства од приватизације из претходних година | J83: 0
F84: 15 | G84: Неутрошена средства донација из претходних година | J84: 0
F85: 16 | G85: Родитељски динар за ваннаставне активности | J85: 0
G86: Укупно за раздео 1. - СКУПШТИНА ОПШТИНЕ | H86: =SUM(H70:H85) -> 18730000 | J86: =SUM(J70:J85) -> 18730000
A88: 2 | G88: ПРЕДСЕДНИК ОПШТИНЕ
C89: 2101 | G89: ПРОГРАМ 16 : ПОЛИТИЧКИ СИСТЕМ ЛОКАЛНЕ САМОУПРАВЕ
C90: 2101-0002 | G90: ПА:Функционисање извршних органа
D91: 111 | G91: Извршни и законодавни органи
E92: 13 | F92: 411 | G92: Плате, додаци и накнаде запослених (зараде) | H92: 3264000 | J92: =H92+I92 -> 3264000
E93: 14 | F93: 412 | G93: Социјални доприноси на терет послодавца | H93: 544000 | J93: =H93+I93 -> 544000
F94: 413 | G94: Накнаде у натури | J94: 0
E95: 15 | F95: 413 | G95: Накнада у натури | H95: 50000 | J95: 50000
E96: 16 | F96: 414 | G96: Социјална давања запосленима | H96: 200000 | J96: 200000
F97: 415 | G97: Накнаде трошкова за запослене | J97: 0
F98: 416 | G98: Награде запосленима и остали посебни расходи | J98: 0
F99: 417 | G99: Посланички додатак | J99: 0
F100: 418 | G100: Судијски додатак. | J100: 0
E101: 17 | F101: 415 | G101: Накнада трошкова за запослене - превоз | H101: 5000 | J101: 5000
E102: 18 | F102: 416 | G102: Награде запосленима и остали посебни расходи - јубиларне награде | H102: 120000 | J102: =H102 -> 120000
E103: 19 | F103: 421 | G103: Стални трошкови | H103: 10000 | J103: 10000
E104: 20 | F104: 422 | G104: Трошкови путовања | H104: 250000 | I104: 125000 | J104: 375000
E105: 21 | F105: 423 | G105: Услуге по уговору | H105: 4500000 | I105: 125000 | J105: 4625000
F106: 424 | G106: Специјализоване услуге | J106: 0
E107: 22 | F107: 425 | G107: Текуће поправке и одржавање | H107: 100000 | J107: 100000
E108: 23 | F108: 426 | G108: Материјал | H108: 1300000 | J108: 1300000
F109: 431 | G109: Амортизација некретнина и опреме | J109: 0
F110: 432 | G110: Амортизација култивисане имовине | J110: 0
F111: 433 | G111: Употреба драгоцености | J111: 0
F112: 434 | G112: Употреба природне имовине | J112: 0
F113: 435 | G113: Амортизација нематеријалне имовине | J113: 0
F114: 441 | G114: Отплата домаћих камата | J114: 0
F115: 442 | G115: Отплата страних камата | J115: 0
F116: 443 | G116: Отплата камата по гаранцијама | J116: 0
F117: 444 | G117: Пратећи трошкови задуживања | J117: 0
F118: 4511 | G118: Текуће субвенције јавним нефинансијским предузећима и организацијама | J118: 0
F119: 4512 | G119: Капиталне субвенције јавним нефинансијским предузећима и организацијама | J119: 0
F120: 452 | G120: Субвенције приватним финансијским институцијама | J120: 0
F121: 453 | G121: Субвенције јавним финансијским институцијама | J121: 0
F122: 454 | G122: Субвенције приватним предузећима | J122: 0
F123: 461 | G123: Донације страним владама | J123: 0
F124: 462 | G124: Донације и дотације међународним организацијама | J124: 0
F125: 4631 | G125: Текући трансфери осталим нивоима власти | J125: 0
F126: 4632 | G126: Капитални трансфери осталим нивоима власти | J126: 0
F127: 464 | G127: Дотације организацијама обавезног социјалног осигурања | J127: 0
F128: 465 | G128: Остале донације, дотације и трансфери | J128: 0
F129: 472 | G129: Накнаде за социјалну заштиту из буџета | J129: 0
F130: 481 | G130: Дотације невладиним организацијама | J130: 0
F131: 482 | G131: Порези, обавезне таксе, казне и пенали | J131: 0
F132: 483 | G132: Новчане казне и пенали по решењу судова | J132: 0
F133: 484 | G133: Накнада штете за повреде или штету насталу услед елементарних непогода или других природних узрока | J133: 0
F134: 485 | G134: Накнада штете за повреде или штету нанету од стране државних органа | J134: 0
F135: 489 | G135: Расходи који се финансирају из средстава за реализацију националног инвестиционог плана | J135: 0
F136: 494 | G136: Административни трансфери из буџета - Текући расходи | J136: 0
F137: 495 | G137: Административни трансфери из буџета - Издаци за нефинансијску имовину | J137: 0
F138: 496 | G138: Административни трансфери из буџета - Издаци за отплату главнице и набавку финансијске имовине | J138: 0
F139: 499 | G139: Административни трансфери из буџета - Средства резерве | J139: 0
F140: 511 | G140: Зграде и грађевински објекти | J140: 0
F141: 512 | G141: Машине и опрема | J141: 0
F142: 513 | G142: Остале некретнине и опрема | J142: 0
F143: 514 | G143: Култивисана имовина | J143: 0
F144: 515 | G144: Нематеријална имовина | J144: 0
F145: 521 | G145: Робне резерве | J145: 0
F146: 522 | G146: Залихе производње | J146: 0
F147: 523 | G147: Залихе робе за даљу продају | J147: 0
F148: 531 | G148: Драгоцености | J148: 0
F149: 541 | G149: Земљиште | J149: 0
F150: 542 | G150: Рудна богатства | J150: 0
F151: 543 | G151: Шуме и воде | J151: 0
F152: 551 | G152: Нефинансијска имовина која се финансира из средстава за реализацију националног инвестиционог плана | J152: 0
F153: 611 | G153: Отплата главнице домаћим кредиторима | J153: 0
E154: 24 | F154: 482 | G154: Порези, обавезне таксе, казне и пенали | H154: 10000 | J154: 10000
G155: Извор финансирања за ПА: 2101-0002
G156: 01 - Приходи из буџета | H156: =H92+H93+H95+H96+H101+H102+H103+H104+H105+H107+H108+H154 -> 10353000 | J156: =H156 -> 10353000
G157: Трансфери између корисника на истом нивоу | J157: =SUM(H157:I157) -> 0
G158: Социјални доприноси | J158: 0
G159: Сопствени приходи буџетских корисника | J159: 0
G160: Донације од иностраних земаља | J160: 0
G161: Донације од међународних организација | J161: 0
G162: Трансфери од других нивоа власти | J162: 0
G163: Добровољни трансфери од физичких и правних лица | J163: 0
G164: Примања од продаје нефинансијске имовине | J164: 0
G165: Примања од домаћих задуживања | J165: 0
G166: Примања од иностраних задуживања | J166: 0
G167: Примања од отплате датих кредита и продаје финансијске имовине | J167: 0
G168: Нераспоређени вишак прихода из ранијих година | J168: 0
G169: Неутрошена средства од приватизације из претходних година | J169: 0
G170: Неутрошена средства донација из претходних година | J170: 0
G171: Родитељски динар за ваннаставне активности | J171: 0
G172: 06 - Из средстава донације | I172: 250000 | J172: =I172 -> 250000
G173: Укупно за ПА: 2101-0002 | H173: =H156 -> 10353000 | I173: =I172 -> 250000 | J173: =J92+J93+J95+J96+J101+J102+J103+J104+J105+J107+J108+J154 -> 10603000
G174: Извор финансирања за раздео 2. - ПРЕДСЕДНИК ОПШТИНЕ
G175: 01 -Приходи из буџета | H175: =H192 -> 10353000 | J175: =SUM(H175:I175) -> 10353000
F176: 02 | G176: Трансфери између корисника на истом нивоу | J176: =SUM(H176:I176) -> 0
F177: 03 | G177: Социјални доприноси | J177: 0
F178: 04 | G178: Сопствени приходи буџетских корисника | J178: 0
F179: 05 | G179: Донације од иностраних земаља | J179: 0
F180: 06 | G180: Донације од међународних организација | J180: 0
F181: 07 | G181: Трансфери од других нивоа власти | J181: 0
F182: 08 | G182: Добровољни трансфери од физичких и правних лица | J182: 0
F183: 09 | G183: Примања од продаје нефинансијске имовине | J183: 0
F184: 10 | G184: Примања од домаћих задуживања | J184: 0
F185: 11 | G185: Примања од иностраних задуживања | J185: 0
F186: 12 | G186: Примања од отплате датих кредита и продаје финансијске имовине | J186: 0
F187: 13 | G187: Нераспоређени вишак прихода из ранијих година | J187: 0
F188: 14 | G188: Неутрошена средства од приватизације из претходних година | J188: 0
F189: 15 | G189: Неутрошена средства донација из претходних година | J189: 0
F190: 16 | G190: Родитељски динар за ваннаставне активности | J190: 0
G191: 06 - Из средстава донације | I191: =I172 -> 250000 | J191: =I191 -> 250000
G192: Укупно за раздео 2. - ПРЕДСЕДНИК ОПШТИНЕ | H192: =H173 -> 10353000 | I192: =I191 -> 250000 | J192: =J173 -> 10603000
A194: 3 | G194: ОПШТИНСКО ВЕЋЕ
C195: 2101 | G195: ПРОГРАМ 16: ПОЛИТИЧКИ СИСТЕМ ЛОКАЛНЕ САМОУПРАВЕ
C196: 2101-0002 | G196: ПА: Функционисање извршних органа
D197: 111 | G197: Извршни и законодавни органи
E198: 25 | F198: 411 | G198: Плате, додаци и накнаде запослених (зараде) | H198: 880000 | J198: =H198 -> 880000
E199: 26 | F199: 412 | G199: Социјални доприноси на терет послодавца | H199: 147000 | J199: =H199 -> 147000
E200: 27 | F200: 414 | G200: Социјална давања запосленима | H200: 70000 | J200: =H200 -> 70000
E201: 28 | F201: 415 | G201: Накнада трошкова за запослене - превоз | H201: 81000 | J201: 81000
E202: 29 | F202: 423 | G202: Услуге по уговору - накнада члановима општинског већа, репрезентација | H202: 2200000 | J202: =H202 -> 2200000
... 2208 more rows
